bitfinex-derivatives/quotes_ETHF0:USTF0_20251012
["timestamp","ask_amount","ask_price","bid_price","bid_amount"]
[1760267675743,12.54671254,3830.6,3830.5,3.2078]
[1760267682347,7.54671254,3830.6,3830.2,0.5789]
[1760267682551,0.8036,3830.3,3830.1,3.2078]
[1760267682751,1.3879,3830.2,3830.1,3.2078]
[1760267682953,7.6958139,3830.2,3830.1,3.2078]
[1760267683154,4.2684459,3830.2,3830.1,3.2078]
[1760267683450,4.815268,3830.2,3830.1,3.2078]
[1760267683647,48.4958139,3830.2,3830.1,3.2078]
[1760267683850,48.4958139,3830.2,3829.8,0.6111]
[1760267684049,48.4958139,3830.2,3829.6,3.2078]
[1760267684255,1.3812,3829.7,3829.4,2.3334205]
[1760267684551,0.3882,3829.2,3829.1,0.8102]
[1760267684940,0.5785,3829.9,3829.1,0.8102]
[1760267685145,1.3812,3829.9,3829.8,1.0144]
[1760267685545,7.62634767,3829.9,3829.3,0.6141]
[1760267685852,1.3812,3829.2,3829.1,3.2078]
[1760267686045,1.3812,3829.2,3829.1,4.2222]
[1760267686245,4.28977338,3829.2,3829.1,4.2222]
[1760267687247,7.67354097,3829.2,3829.1,3.8219]
[1760267687647,48.47354097,3829.2,3829.1,3.8219]
[1760267687848,48.47354097,3829.2,3829.1,3.2078]
[1760267688250,48.47354097,3829.2,3829.1,3.6081]
[1760267688449,48.47354097,3829.2,3829.1,4.2222]
[1760267688653,48.47354097,3829.2,3829.1,3.8219]
[1760267688851,48.47354097,3829.2,3829.1,3.2078]
[1760267689852,48.47354097,3829.2,3829.1,3.8219]
[1760267690055,48.47354097,3829.2,3829.1,4.2222]
[1760267691751,47.89504097,3829.2,3829.1,4.6321]
[1760267691950,44.57196759,3829.2,3829.1,4.6321]
[1760267692956,3.77196759,3829.2,3829.1,4.6321]
[1760267693144,3.77196759,3829.2,3829.1,1.4243]
[1760267693345,4.18646759,3829.2,3828.7,3.2078]
[1760267693553,1.3812,3828.9,3828.8,1.4243]
[1760267693857,0.3882,3829.1,3829.0,0.2438]
[1760267694060,0.3882,3829.1,3829.0,1.054]
[1760267694451,6.56103124,3829.1,3829.0,1.6681]
[1760267696259,6.97553124,3829.1,3829.0,1.2582]
[1760267696555,7.55403124,3829.1,3829.0,1.2582]
[1760267696954,6.97553124,3829.1,3829.0,1.6681]
[1760267698860,7.55403124,3829.1,3829.0,1.6681]
[1760267699061,6.97553124,3829.1,3829.0,1.6681]
[1760267699259,7.55403124,3829.1,3829.0,0.6141]
[1760267699462,1.3812,3828.9,3828.8,1.0144]
[1760267699756,4.34230194,3828.9,3828.8,1.0144]
[1760267700065,7.7801256,3828.9,3828.8,1.0144]
[1760267700266,1.3812,3828.8,3828.7,3.2078]
[1760267700462,0.2182,3828.5,3828.4,0.00308768]
[1760267700662,1.5994,3828.5,3828.4,0.00308768]
[1760267700868,7.91798435,3828.5,3828.4,0.00308768]
[1760267701067,7.69978435,3828.5,3828.4,1.01748768]
[1760267702068,48.49978435,3828.5,3828.4,1.01748768]
[1760267702374,48.49978435,3828.5,3828.4,0.61718768]
[1760267702774,48.49978435,3828.5,3828.4,1.01748768]
[1760267704175,3.7863,3829.3,3828.5,0.2438]
[1760267704381,3.7863,3829.3,3828.6,0.6141]
[1760267704676,3.7863,3829.3,3828.5,0.2438]
[1760267704677,6.91930381,3828.9,3828.8,1.4243]
[1760267704873,0.8027,3828.9,3828.8,1.4243]
[1760267705065,4.18539914,3828.9,3828.8,1.4243]
[1760267707473,3.38269914,3828.9,3828.8,1.4243]
[1760267707776,4.0105,3829.8,3829.7,1.0144]
[1760267708187,51.18347558,3829.8,3829.7,1.0144]
[1760267708679,51.76197558,3829.8,3829.7,0.6141]
[1760267708880,51.18347558,3829.8,3829.5,0.8579]
[1760267709083,1.3812,3829.6,3829.5,1.2582]
[1760267709585,7.65010922,3829.6,3829.5,1.2582]
[1760267709775,7.65010922,3829.6,3829.5,4.466]
[1760267709972,7.65010922,3829.6,3829.5,4.8759]
[1760267710174,7.07160922,3829.6,3829.5,4.8759]
[1760267711580,7.64120922,3829.6,3829.5,4.8759]
[1760267712079,7.07160922,3829.6,3829.5,4.8759]
[1760267713578,6.26890922,3829.6,3829.5,4.8759]
[1760267713774,6.65000922,3829.6,3829.5,4.8759]
[1760267714580,7.61230922,3829.6,3829.5,3.2078]
[1760267715275,7.61230922,3829.6,3829.5,3.7725]
[1760267716385,7.61230922,3829.6,3829.5,4.4167]
[1760267716686,7.61230922,3829.6,3829.5,4.8183]
[1760267719294,6.26890922,3829.6,3829.5,4.8183]
[1760267719485,7.04270922,3829.6,3829.5,4.8183]
[1760267722089,6.26890922,3829.6,3829.5,4.8183]
[1760267722287,40.8,3829.8,3829.7,0.7957]
[1760267722495,40.8,3829.8,3829.7,1.3604]
[1760267723586,0.7738,3829.9,3829.8,1.3604]
[1760267723794,1.3434,3829.9,3829.8,1.3604]
[1760267723984,47.74952629,3829.9,3829.8,1.3604]
[1760267726798,44.2007877,3829.9,3829.8,1.3604]
[1760267727888,45.5441877,3829.9,3829.8,1.3604]
[1760267728204,48.38946881,3829.9,3829.8,0.5647]
[1760267728592,48.38946881,3829.9,3829.8,0.9588]
[1760267734700,1.3434,3829.7,3829.6,3.2078]
[1760267734995,0.7738,3829.4,3829.3,0.5647]
[1760267735192,1.3434,3829.4,3829.3,0.5647]
[1760267735400,7.51301423,3829.4,3829.3,0.9588]
[1760267735801,7.51301423,3829.4,3829.3,1.3604]
[1760267736001,7.51301423,3829.4,3829.3,0.5647]
[1760267736494,7.51301423,3829.4,3829.3,0.9588]
[1760267737698,6.94341423,3829.4,3829.2,5.5412205]
[1760267737905,1.3434,3829.3,3829.2,3.2078]
[1760267738498,47.88284972,3829.3,3829.2,4.5682]
[1760267740693,47.88284972,3829.3,3829.2,1.3604]
[1760267742800,47.88284972,3829.3,3829.0,3.2078]
[1760267743003,1.3719,3829.1,3829.0,3.2078]
[1760267743205,0.7892,3828.8,3828.7,0.9461]
[1760267743400,0.7892,3828.8,3828.6,3.2078]
[1760267743612,1.3719,3828.7,3828.6,3.7698]
[1760267744013,4.1079238,3828.7,3828.6,4.1539]
[1760267748309,7.51739963,3828.7,3828.6,3.2078]
[1760267748610,1.5901,3828.5,3828.4,0.00308768]
[1760267749008,7.82412065,3828.5,3828.4,0.00308768]
[1760267749306,48.04142065,3828.5,3828.4,1.31778768]
[1760267749609,48.62412065,3828.5,3828.4,0.56508768]
[1760267750708,48.62412065,3828.5,3828.4,0.94918768]
[1760267753214,48.04142065,3828.5,3828.4,1.31778768]
[1760267753912,47.25222065,3828.5,3828.4,1.31778768]
[1760267754215,47.64802065,3828.5,3828.4,1.31778768]
[1760267755510,3.44462464,3828.5,3828.4,1.31778768]
[1760267756508,6.99912259,3828.5,3828.4,0.94918768]
[1760267756911,6.99912259,3828.5,3828.4,1.31778768]
[1760267759316,3.44462464,3828.5,3828.4,1.31778768]
[1760267759817,3.84042464,3828.5,3828.4,1.31778768]
[1760267763320,4.23382464,3828.5,3828.4,1.31778768]
[1760267763614,4.23382464,3828.5,3828.4,0.94918768]
[1760267763823,7.82965049,3828.5,3828.4,0.00308768]
[1760267764320,7.61145049,3828.5,3828.4,0.56508768]
[1760267765420,12.82965049,3828.5,3828.4,0.00308768]
[1760267766113,53.62965049,3828.5,3828.4,0.00308768]
[1760267766724,48.41145049,3828.5,3828.4,0.56508768]
[1760267767218,47.43535049,3828.5,3828.4,1.31778768]
[1760267771526,48.41775049,3828.5,3828.4,0.94918768]
[1760267771919,47.82875049,3828.5,3828.4,1.31658768]
[1760267774024,47.03955049,3828.5,3828.4,1.31658768]
[1760267774227,3.9653,3829.1,3829.0,1.5302]
[1760267774426,4.5543,3829.1,3829.0,1.5302]
[1760267774623,51.80107574,3829.1,3829.0,1.5302]
[1760267776528,51.80107574,3829.1,3829.0,0.5413]
[1760267776726,0.7575,3828.5,3828.4,2.33738485]
[1760267776925,1.3465,3828.5,3828.4,2.87868485]
[1760267777125,7.71100092,3828.5,3828.4,0.54438768]
[1760267779735,7.71100092,3828.5,3828.4,0.00308768]
[1760267779937,7.92920092,3828.5,3828.4,0.00308768]
[1760267780340,53.72920092,3828.5,3828.4,0.00308768]
[1760267780726,0.589,3828.4,3827.6,2.87559717]
[1760267780932,1.3465,3827.7,3827.6,2.33429717]
[1760267781134,0.589,3827.6,3827.4,2.33429717]
[1760267781329,0.7575,3827.5,3827.2,6.08339717]
[1760267781532,1.3465,3827.3,3827.2,5.54209717]
[1760267781735,1.3465,3827.0,3826.9,2.33429717]
[1760267781932,1.3465,3826.9,3826.8,2.33429717]
[1760267782236,1.3465,3826.9,3826.3,3.2078]
[1760267782237,1.3465,3826.5,3826.3,3.2078]
[1760267782533,7.56913376,3826.4,3826.3,3.20977964]
[1760267782836,1.3465,3826.4,3826.3,3.20977964]
[1760267783142,1.3465,3826.4,3826.3,0.00197964]
[1760267783143,7.61226311,3826.4,3826.3,0.00197964]
[1760267783341,12.61226311,3826.4,3826.3,0.00197964]
[1760267783743,53.41226311,3826.4,3826.3,0.00197964]
[1760267788937,48.41226311,3826.4,3826.3,0.00197964]
[1760267789133,53.41226311,3826.4,3825.3,0.5413]
[1760267789333,53.41226311,3826.4,3825.1,0.58679165]
[1760267789337,1.3465,3825.2,3825.1,0.58679165]
[1760267789843,42.1465,3825.2,3825.1,0.97749165]
[1760267790040,42.1465,3825.2,3824.1,6.08339717]
[1760267790041,0.7575,3824.7,3824.1,6.08339717]
[1760267790245,0.3735,3824.7,3824.6,1.2994]
[1760267790546,41.5575,3825.2,3825.1,1.2994]
[1760267790941,47.89059795,3825.2,3825.1,0.7581]
[1760267791142,47.50659795,3825.2,3825.1,1.2994]
[1760267791543,48.47959795,3825.2,3825.1,0.5413]
[1760267791746,47.89059795,3825.2,3824.6,3.2078]
[1760267791936,0.7575,3824.9,3824.8,0.3907]
[1760267792140,0.7575,3824.9,3824.8,1.2994]
[1760267794445,7.5112951,3824.9,3824.8,0.932]
[1760267794640,0.589,3824.8,3824.7,0.5413]
[1760267794846,1.3465,3824.8,3824.7,0.932]
[1760267795152,4.11054791,3824.8,3824.7,1.2994]
[1760267795352,4.11054791,3824.8,3824.7,0.932]
[1760267795652,7.63473069,3824.8,3824.7,0.932]
[1760267797049,7.04573069,3824.8,3824.7,0.932]
[1760267797353,3.72654791,3824.8,3824.7,1.2994]
[1760267798353,4.69954791,3824.8,3824.7,0.932]
[1760267798557,1.3465,3824.7,3824.6,4.18530057]
[1760267799055,4.16839198,3824.7,3824.6,4.18530057]
[1760267799261,3.57939198,3824.7,3824.6,4.55270057]
[1760267800156,4.11709198,3824.7,3824.6,4.55270057]
[1760267800346,4.11709198,3824.7,3824.6,3.25330057]
[1760267800551,4.11709198,3824.7,3824.2,3.2078]
[1760267800552,1.2983,3824.3,3824.2,3.2078]
[1760267800753,1.3014896,3824.3,3824.2,3.2078]
[1760267801044,7.56820851,3824.3,3824.2,3.2078]
[1760267801250,7.56820851,3824.3,3824.2,4.1752]
[1760267802151,7.56820851,3824.3,3824.2,3.7802]
[1760267802554,7.56820851,3824.3,3824.2,3.2078]
[1760267804056,48.36820851,3824.3,3824.2,3.2078]
[1760267804358,48.36820851,3824.3,3824.1,0.00325149]
[1760267804558,1.3111,3823.3,3823.2,0.577]
[1760267804949,7.65592481,3823.3,3823.2,0.577]
[1760267805566,7.65592481,3823.3,3823.2,0.58006808]
[1760267805958,7.65592481,3823.3,3823.2,0.97206808]
[1760267806262,7.65592481,3823.3,3823.2,0.00306808]
[1760267806861,7.65592481,3823.3,3821.0,2.55469717]
[1760267806862,1.3111,3822.9,3822.0,0.577]
[1760267807052,0.2149,3822.5,3821.4,3.2078]
[1760267807356,41.5607,3822.1,3822.0,1.1894]
[1760267807558,6.11922949,3822.4,3822.1,0.577]
[1760267807757,0.3702,3822.4,3822.3,4.5404]
[1760267807957,41.5607,3822.4,3822.3,4.54238432]
[1760267808158,48.16934133,3822.4,3822.3,0.97098432]
[1760267809159,48.16934133,3822.4,3822.3,0.57898432]
[1760267809655,48.16934133,3822.4,3822.3,0.00198432]
[1760267810258,48.16934133,3822.4,3822.3,0.57898432]
[1760267810466,47.61894133,3822.4,3822.3,4.54238432]
[1760267811759,44.88765605,3822.4,3822.3,4.54238432]
[1760267812661,40.8,3822.4,3822.3,4.54238432]
[1760267813567,0.5504,3822.9,3822.3,4.54238432]
[1760267813863,0.3702,3822.5,3822.4,1.3326]
[1760267814069,41.1702,3822.5,3822.4,1.3326]
[1760267816258,42.1111,3822.5,3822.4,1.3326]
[1760267816570,48.41852505,3822.5,3822.4,0.577]
[1760267817369,1.3111,3822.4,3822.3,0.00198432]
[1760267817569,1.3111,3822.4,3822.3,0.57898432]
[1760267817765,4.08076276,3822.4,3822.3,0.57898432]
[1760267818070,4.08076276,3822.4,3822.3,0.97098432]
[1760267819166,0.5504,3822.3,3821.9,3.2078]
[1760267819370,6.15040443,3822.4,3821.9,3.2078]
[1760267819371,1.3968,3822.0,3821.9,3.2078]
[1760267819771,7.81245743,3822.0,3821.9,3.2078]
[1760267820175,12.81245743,3822.0,3821.9,0.00293459]
[1760267821267,7.81245743,3822.0,3821.9,0.00293459]
[1760267823471,16.02025743,3822.0,3821.9,0.00293459]
[1760267823770,56.82025743,3822.0,3821.1,3.2078]
[1760267823969,1.3111,3821.2,3821.1,3.2078]
[1760267824371,7.55979441,3821.2,3821.1,3.2078]
[1760267824571,7.55979441,3821.2,3820.0,0.2204]
[1760267824572,1.3111,3820.7,3820.6,3.2078]
[1760267824968,7.55979441,3820.7,3820.6,3.2078]
[1760267825171,48.36223157,3820.7,3820.6,3.2111706]
[1760267825869,47.81183157,3820.7,3820.6,3.9667706]
[1760267826173,40.80243716,3820.7,3820.6,4.5437706]
[1760267826574,42.11353716,3820.7,3820.6,3.7881706]
[1760267826779,42.11353716,3820.7,3820.6,4.1801706]
[1760267826979,41.56313716,3820.7,3820.6,4.5437706]
[1760267828271,42.11353716,3820.7,3820.6,3.7881706]
[1760267828472,41.56313716,3820.7,3820.6,4.1801706]
[1760267828667,41.56313716,3820.7,3820.6,3.7881706]
[1760267828977,45.08402783,3820.7,3820.6,3.7881706]
[1760267829479,45.08402783,3820.7,3820.6,0.5803706]
[1760267829673,48.48777286,3820.7,3820.6,0.0033706]
[1760267834979,47.93737286,3820.7,3820.6,1.2921706]
[1760267835286,48.49007286,3820.7,3820.6,0.9127706]
[1760267835478,48.49007286,3820.7,3820.6,0.0033706]
[1760267835984,48.49007286,3820.7,3820.6,0.5413706]
[1760267836782,48.49007286,3820.7,3820.6,0.9127706]
[1760267836982,47.54687286,3820.7,3820.6,1.2921706]
[1760267837178,0.77393716,3820.7,3820.6,1.2921706]
[1760267837378,7.56697426,3820.7,3820.6,0.0033706]
[1760267837680,48.36697426,3820.7,3820.6,0.0033706]
[1760267840882,48.36697426,3820.7,3819.7,3.7458]
[1760267841081,1.3242,3819.8,3819.7,3.7458]
[1760267841582,1.3242,3819.8,3819.7,4.1172]
[1760267842079,1.3242,3819.8,3819.7,4.11985055]
[1760267842282,0.3934,3819.8,3819.7,4.49925055]
[1760267842680,0.5527,3820.2,3819.7,4.49925055]
[1760267842887,0.5527,3820.5,3819.8,0.538]
[1760267843091,7.04717044,3820.1,3820.0,0.9739]
[1760267843287,7.04717044,3820.1,3820.0,1.5119]
[1760267843490,0.7715,3820.1,3820.0,1.5119]
[1760267843689,4.20258954,3820.1,3820.0,1.5119]
[1760267845188,3.82448954,3820.1,3820.0,1.5119]
[1760267845585,40.80243716,3820.7,3820.6,0.7508]
[1760267845778,40.80243716,3820.7,3820.6,1.2888]
[1760267845779,41.19583716,3820.7,3820.6,1.2888]
[1760267845982,44.55166653,3820.7,3820.6,1.2888]
[1760267846187,0.00243716,3820.7,3820.6,6.2888]
[1760267846583,4.1962676,3820.7,3820.6,1.2888]
[1760267847083,3.4247676,3820.7,3820.6,1.2888]
[1760267847394,0.00243716,3820.7,3820.6,6.2888]
[1760267851593,4.76015514,3820.7,3820.6,1.2888]
[1760267851880,4.76015514,3820.7,3820.5,0.2231]
[1760267851881,4.20745514,3820.7,3820.4,3.7458]
[1760267852087,1.3242,3820.5,3820.4,3.7458]
[1760267852589,7.48728077,3820.5,3820.4,3.7458]
[1760267852890,7.48728077,3820.5,3820.4,4.1172]
[1760267853392,7.48728077,3820.5,3820.4,3.2078]
[1760267853900,7.69888077,3820.5,3820.4,3.2078]
[1760267854189,1.3242,3820.0,3819.9,3.2078]
[1760267854387,42.1242,3820.0,3819.9,3.2078]
[1760267854584,48.38023243,3820.0,3819.9,3.2078]
[1760267855190,48.38023243,3820.0,3819.5,3.2078]
[1760267855191,48.46593243,3820.0,3819.5,3.2078]
[1760267855392,1.3242,3819.8,3819.4,0.538]
[1760267855786,7.40557355,3819.8,3819.4,0.538]
[1760267856197,7.40557355,3819.8,3819.0,3.9662]
[1760267859491,7.40557355,3819.8,3819.2,0.538]
[1760267859896,7.40557355,3819.8,3819.0,3.2078]
[1760267860198,11.85287355,3819.8,3819.0,3.2078]
[1760267860497,1.2524,3819.1,3819.0,3.2078]
[1760267860699,1.2524,3819.1,3819.0,4.3361]
[1760267860998,4.64810367,3819.1,3819.0,3.75]
[1760267861302,4.64810367,3819.1,3819.0,4.10589693]
[1760267863392,4.64810367,3819.1,3819.0,3.75219693]
[1760267864691,12.3905177,3819.1,3819.0,3.07405871]
[1760267864894,12.3905177,3819.1,3819.0,0.00219693]
[1760267865294,53.1905177,3819.1,3819.0,0.00219693]
[1760267865597,53.1905177,3819.1,3818.2,3.2078]
[1760267865792,1.2874,3818.3,3818.2,3.2078]
[1760267866194,7.60603008,3818.3,3817.8,0.0261931]
[1760267866509,1.2874,3817.9,3817.8,0.0261931]
[1760267866694,1.29079213,3817.9,3817.8,0.02862372]
[1760267866894,7.53399625,3817.9,3817.8,0.02862372]
[1760267867800,48.33399625,3817.9,3817.8,0.02862372]
[1760267869306,47.79769625,3817.9,3817.8,1.31332372]
[1760267869497,44.16086833,3817.9,3817.8,1.31332372]
[1760267869698,3.36086833,3817.9,3817.8,6.31332372]
[1760267869900,3.36086833,3817.9,3817.8,1.31332372]
[1760267870299,0.00339213,3817.9,3817.8,6.31332372]
[1760267870495,0.00339213,3817.9,3817.8,1.31332372]
[1760267872601,0.00339213,3817.9,3817.8,6.31332372]
[1760267873796,0.00339213,3817.9,3817.8,1.31332372]
[1760267874003,0.75449213,3817.9,3817.8,0.58832372]
[1760267874205,0.75449213,3817.9,3817.8,1.31332372]
[1760267874702,4.17945761,3817.9,3817.8,1.31332372]
[1760267875997,3.64315761,3817.9,3817.8,1.31332372]
[1760267876202,0.00339213,3817.9,3817.8,1.31332372]
[1760267876798,0.00339213,3817.9,3817.8,6.31332372]
[1760267878507,0.75449213,3817.9,3817.8,1.31332372]
[1760267878700,3.74046253,3817.9,3817.8,1.31332372]
[1760267879308,0.00339213,3817.9,3817.8,1.31332372]
[1760267879608,0.37829213,3817.9,3817.8,1.31332372]
[1760267879905,0.00339213,3817.9,3817.8,1.31332372]
[1760267880103,3.2078,3819.0,3817.8,6.31332372]
[1760267880305,3.2078,3819.0,3818.2,0.5597]
[1760267880505,47.93661964,3818.9,3818.8,0.3489]
[1760267880701,47.93661964,3818.9,3818.8,0.9086]
[1760267881100,48.47566271,3818.9,3818.8,0.9086]
[1760267882005,47.93936271,3818.9,3818.8,0.9086]
[1760267882208,44.60318206,3818.9,3818.8,1.2847]
[1760267882414,0.7511,3818.7,3818.6,0.5597]
[1760267882600,0.7511,3818.7,3818.6,0.9086]
[1760267882904,0.7511,3818.7,3818.6,1.2847]
[1760267882905,4.16468043,3818.7,3818.6,1.2847]
[1760267885307,3.78848043,3818.7,3818.6,1.2847]
[1760267885503,0.00274307,3818.9,3818.8,0.725]
[1760267885802,2.79472872,3818.8,3818.5,0.2184]
[1760267886002,2.79472872,3818.8,3818.0,0.2184]
[1760267886003,0.3749,3818.1,3818.0,2.90159717]
[1760267886201,0.7511,3818.1,3818.0,0.5673]
[1760267886403,0.7511,3818.1,3818.0,1.5031]
[1760267886702,6.93072373,3818.1,3817.9,0.5597]
[1760267886900,1.2874,3818.0,3817.9,0.5597]
[1760267887305,4.6672522,3818.0,3817.9,0.5597]
[1760267887516,4.6672522,3818.0,3817.9,0.9086]
[1760267887809,4.1309522,3818.0,3817.9,1.2847]
[1760267888607,4.6672522,3818.0,3817.9,0.5597]
[1760267888811,4.1309522,3818.0,3817.9,1.2847]
[1760267889013,4.6672522,3818.0,3817.9,1.2847]
[1760267889214,4.6672522,3818.0,3817.9,0.9086]
[1760267889615,4.1309522,3818.0,3817.8,0.02862372]
[1760267889814,1.2874,3817.9,3817.8,0.02862372]
[1760267890215,12.60745871,3817.9,3817.8,0.02862372]
[1760267890707,53.40745871,3817.9,3817.2,0.26196869]
[1760267890914,1.2082,3817.3,3817.2,0.26196869]
[1760267891113,4.416,3817.3,3817.2,0.26196869]
[1760267891303,10.52631766,3817.3,3817.2,0.26196869]
[1760267891504,51.32631766,3817.3,3817.2,0.26196869]
[1760267891710,51.32631766,3817.3,3817.2,0.2645868]
[1760267891905,56.32631766,3817.3,3817.2,0.2645868]
[1760267893611,53.11851766,3817.3,3817.2,0.2645868]
[1760267893812,56.32631766,3817.3,3817.2,0.2645868]
[1760267894110,51.32631766,3817.3,3817.2,0.2645868]
[1760267894913,56.32631766,3817.3,3817.2,0.2645868]
[1760267897513,51.32631766,3817.3,3817.2,0.2645868]
[1760267897904,47.62671766,3817.3,3817.2,1.1484868]
[1760267898813,47.62671766,3817.3,3817.2,1.5175868]
[1760267899913,47.62671766,3817.3,3817.2,1.1484868]
[1760267901214,47.62671766,3817.3,3817.2,1.5175868]
[1760267904316,48.11851766,3817.3,3817.2,0.2645868]
[1760267905615,48.11851766,3817.3,3817.2,1.1484868]
[1760267906117,44.15371377,3817.3,3817.2,1.5175868]
[1760267906420,44.51891377,3817.3,3817.2,1.5175868]
[1760267906717,45.36191377,3817.3,3817.2,1.1484868]
[1760267906917,48.35836037,3817.3,3817.2,0.7914868]
[1760267907911,48.35836037,3817.3,3817.2,1.1484868]
[1760267908215,48.35836037,3817.3,3817.2,0.7914868]
[1760267909518,48.35836037,3817.3,3817.2,1.1484868]
[1760267909920,48.35836037,3817.3,3817.2,0.7914868]
[1760267910123,48.35836037,3817.3,3817.2,0.2645868]
[1760267910331,51.56616037,3817.3,3817.2,0.2645868]
[1760267910522,56.56616037,3817.3,3817.2,0.2645868]
[1760267911622,56.56616037,3817.3,3816.1,0.5269]
[1760267911824,0.7148,3816.2,3816.1,0.5269]
[1760267912225,4.05096449,3816.2,3816.1,0.5269]
[1760267912524,4.05401262,3816.2,3816.1,0.52885386]
[1760267913214,4.28121262,3816.2,3816.1,0.52885386]
[1760267913418,4.28121262,3816.2,3816.1,0.88585386]
[1760267913821,4.05401262,3816.2,3816.1,0.88585386]
[1760267914723,4.05401262,3816.2,3816.1,1.25495386]
[1760267916121,3.33921262,3816.2,3816.1,1.25495386]
[1760267916323,0.00304813,3816.2,3816.1,6.25495386]
[1760267920232,0.00304813,3816.2,3816.1,8.58925103]
[1760267920930,0.00304813,3816.2,3816.1,6.25495386]
[1760267921129,0.3376,3817.1,3817.0,0.5583]
[1760267921338,44.0078,3817.3,3817.0,0.5583]
[1760267921339,40.8,3817.3,3817.1,0.5341]
[1760267921640,40.8,3817.3,3817.0,0.9174]
[1760267921641,41.1376,3817.3,3817.2,1.24]
[1760267922141,44.51866476,3817.3,3817.2,1.24]
[1760267922434,44.85626476,3817.3,3817.2,1.24]
[1760267923942,44.51866476,3817.3,3817.2,1.24]
[1760267924343,44.18106476,3817.3,3817.2,1.24]
[1760267924542,3.38106476,3817.3,3817.2,1.24]
[1760267925031,3.71576476,3817.3,3817.2,1.24]
[1760267925839,4.25966476,3817.3,3817.2,0.8932]
[1760267926143,4.05046476,3817.3,3817.2,0.8932]
[1760267926342,0.8786,3817.1,3816.8,5.55739077]
[1760267926645,0.6694,3816.9,3816.8,0.8728]
[1760267926839,0.6694,3816.9,3816.8,1.2274]
[1760267927036,6.90219904,3816.9,3816.8,1.2274]
[1760267928338,7.11139904,3816.9,3816.8,0.5046]
[1760267928841,0.8786,3816.6,3816.5,2.34959077]
[1760267929045,0.6694,3816.6,3816.4,3.2078]
[1760267929232,0.8786,3816.5,3816.4,3.2078]
[1760267929639,7.26108446,3816.5,3816.4,3.2078]
[1760267929835,7.26108446,3816.5,3816.4,3.7124]
[1760267930044,7.05188446,3816.5,3816.4,4.0806]
[1760267930645,7.05188446,3816.5,3816.4,4.4352]
[1760267931538,3.20963879,3817.3,3817.0,0.2128]
[1760267931733,3.20963879,3817.3,3817.0,0.581]
[1760267931734,0.6694,3817.1,3817.0,0.581]
[1760267932246,3.42270807,3817.1,3817.0,1.0856]
[1760267932445,6.96473012,3817.1,3817.0,0.5046]
[1760267933342,6.75553012,3817.1,3817.0,1.0856]
[1760267933543,6.08613012,3817.1,3817.0,1.4402]
[1760267933745,3.33282205,3817.1,3817.0,1.4402]
[1760267934141,3.35882636,3817.2,3817.1,0.5046]
[1760267934347,0.3347,3817.2,3817.1,1.2274]
[1760267934646,3.80714289,3817.2,3817.1,1.2274]
[1760267936353,3.47244289,3817.2,3817.1,1.2274]
[1760267936645,4.14184289,3817.2,3817.1,0.8728]
[1760267937247,4.35104289,3817.2,3817.0,0.2128]
[1760267937550,0.6694,3816.9,3816.8,4.0806]
[1760267937848,0.6694,3816.9,3816.8,4.4352]
[1760267938049,4.09163228,3816.9,3816.8,4.4352]
[1760267938948,3.75693228,3816.9,3816.8,4.4352]
[1760267939751,3.42223228,3816.9,3816.8,4.4352]
[1760267940145,0.3347,3817.1,3817.0,0.9356]
[1760267940340,0.6694,3817.0,3816.9,0.8728]
[1760267940545,0.6694,3817.0,3816.9,1.2274]
[1760267940746,4.12878463,3817.0,3816.9,1.2274]
[1760267942047,3.79408463,3817.0,3816.9,1.2274]
[1760267942756,3.45938463,3817.0,3816.9,1.2274]
[1760267943252,3.37030157,3817.2,3817.1,0.7228]
[1760267943453,0.00183879,3817.3,3817.1,0.7228]
[1760267943760,0.33653879,3817.3,3817.2,1.2274]
[1760267944051,4.14392919,3817.3,3817.2,1.2274]
[1760267945554,4.35312919,3817.3,3817.2,0.8728]
[1760267945755,4.35312919,3817.3,3817.2,0.5046]
[1760267945957,0.8786,3817.2,3817.1,0.5046]
[1760267946362,7.21229708,3817.2,3817.1,0.5046]
[1760267947160,7.21229708,3817.2,3817.0,0.2128]
[1760267947357,6.33369708,3817.2,3817.0,1.4402]
[1760267947557,3.66449098,3817.2,3817.1,1.2274]
[1760267947762,3.32979098,3817.2,3817.1,1.2274]
[1760267949862,0.00183879,3817.3,3817.2,1.2256]
[1760267950261,0.2092,3818.2,3817.2,1.2256]
[1760267950262,40.8,3818.1,3817.2,5.7038]
[1760267950467,40.8,3818.1,3818.0,1.4358]
[1760267950766,44.55226431,3818.1,3818.0,1.4358]
[1760267950967,44.86706431,3818.1,3818.0,1.4358]
[1760267951168,45.06386431,3818.1,3818.0,1.0831]
[1760267951466,45.06574431,3818.1,3818.0,0.5218]
[1760267951867,45.06574431,3818.1,3818.0,0.732]
[1760267952457,44.86894431,3818.1,3818.0,1.4358]
[1760267952758,45.06574431,3818.1,3818.0,0.5218]
[1760267952957,47.91729001,3818.1,3817.6,0.5218]
[1760267953153,0.3148,3817.7,3817.6,0.7038]
[1760267953363,0.3148,3817.7,3817.6,1.2256]
[1760267956866,47.09089001,3818.1,3818.0,1.4358]
[1760267957265,47.72049001,3818.1,3818.0,1.4358]
[1760267957469,47.91729001,3818.1,3818.0,1.0831]
[1760267958871,47.91729001,3818.1,3817.5,0.2102]
[1760267959166,0.6296,3817.6,3817.5,1.0831]
[1760267959366,0.6296,3817.6,3817.5,1.4358]
[1760267959565,4.00944126,3817.6,3817.5,1.4358]
[1760267960173,3.69464126,3817.6,3817.5,1.4358]
[1760267961470,3.37984126,3817.6,3817.5,3.78708743]
[1760267961866,3.40737727,3818.0,3817.5,3.26528743]
[1760267962063,0.6296,3818.0,3817.9,0.8729]
[1760267962267,2.92129196,3818.0,3817.9,1.2256]
[1760267962557,3.40737727,3818.0,3817.9,1.2256]
[1760267963566,4.03697727,3818.0,3817.9,0.8729]
[1760267963770,7.26125551,3818.0,3817.9,0.5218]
[1760267964669,7.06445551,3818.0,3817.9,0.8729]
[1760267964874,3.40737727,3818.0,3817.9,1.2256]
[1760267968977,3.72217727,3818.0,3817.9,1.2256]
[1760267969275,3.40737727,3818.0,3817.9,1.2256]
[1760267971869,3.2078,3818.6,3818.0,1.4358]
[1760267972163,2.9738,3818.6,3818.5,1.4358]
[1760267972563,6.62288132,3818.6,3818.5,1.4358]
[1760267972765,3.64908132,3818.6,3818.5,1.4358]
[1760267972970,3.33719536,3818.6,3818.5,1.4358]